[Event "December 19 Early 2023"]
[Site "https://www.chess.com"]
[Date "2023.12.19"]
[Round "4"]
[White "Vincenti, Leonardo"]
[Black "Eilers, Stefan"]
[Result "0-1"]
[Board "208"]
[TimeControl "180+1"]
[WhiteFideId "28550820"]
[BlackFideId "4609565"]
[WhiteElo "2054"]
[BlackElo "2437"]
[WhiteTeam "ITA"]
[BlackTeam "GER"]
[WhiteClock "0:00:18"]
[BlackClock "0:00:19"]

1. e4 {[%clk 0:03:00]}  g6 {[%clk 0:02:59]} 2. d4 {[%clk 0:03:00]}  Bg7 {[%clk 0:03:00]} 3. Nc3 {[%clk 0:03:00]}  c6 {[%clk 0:03:00]} 4. Be3 {[%clk 0:02:59]}  d5 {[%clk 0:02:59]} 5. e5 {[%clk 0:02:59]}  f6 {[%clk 0:02:59]} 6. f4 {[%clk 0:02:57]}  Nh6 {[%clk 0:02:59]} 7. h3 {[%clk 0:02:54]}  Nf5 {[%clk 0:02:58]} 8. Bf2 {[%clk 0:02:54]}  fxe5 {[%clk 0:02:58]} 9. fxe5 {[%clk 0:02:53]}  O-O {[%clk 0:02:53]} 10. g4 {[%clk 0:02:51]}  Nh6 {[%clk 0:02:51]} 11. Qd2 {[%clk 0:02:51]}  b5 {[%clk 0:02:40]} 12. O-O-O {[%clk 0:02:44]}  a5 {[%clk 0:02:27]} 13. Be3 {[%clk 0:02:38]}  Nf7 {[%clk 0:02:27]} 14. Kb1 {[%clk 0:02:24]}  Be6 {[%clk 0:02:22]} 15. Bd3 {[%clk 0:02:08]}  b4 {[%clk 0:02:15]} 16. Na4 {[%clk 0:02:03]}  Nd7 {[%clk 0:02:13]} 17. Ne2 {[%clk 0:02:02]}  Nfxe5 {[%clk 0:02:05]} 18. dxe5 {[%clk 0:01:59]}  Nxe5 {[%clk 0:02:04]} 19. Nd4 {[%clk 0:01:43]}  Bd7 {[%clk 0:01:57]} 20. Nc5 {[%clk 0:01:37]}  Nxd3 {[%clk 0:01:53]} 21. Qxd3 {[%clk 0:01:31]}  Qc8 {[%clk 0:01:51]} 22. Rhf1 {[%clk 0:01:22]}  e5 {[%clk 0:01:51]} 23. Rxf8+ {[%clk 0:01:10]}  Bxf8 {[%clk 0:01:48]} 24. Ne2 {[%clk 0:00:59]}  Qc7 {[%clk 0:01:26]} 25. Ng3 {[%clk 0:00:49]}  Re8 {[%clk 0:01:12]} 26. Nge4 {[%clk 0:00:46]}  Bg7 {[%clk 0:01:07]} 27. Nxd7 {[%clk 0:00:41]}  Qxd7 {[%clk 0:01:07]} 28. Nc5 {[%clk 0:00:41]}  Qe7 {[%clk 0:01:05]} 29. Nb3 {[%clk 0:00:24]}  a4 {[%clk 0:00:58]} 30. Na5 {[%clk 0:00:22]}  d4 {[%clk 0:00:46]} 31. Nxc6 {[%clk 0:00:22]}  Qe6 {[%clk 0:00:43]} 32. Nxd4 {[%clk 0:00:04]}  exd4 {[%clk 0:00:44]} 33. Bxd4 {[%clk 0:00:04]}  Rd8 {[%clk 0:00:44]} 34. c3 {[%clk 0:00:04]}  b3 {[%clk 0:00:40]} 35. a3 {[%clk 0:00:04]}  Bxd4 {[%clk 0:00:27]} 36. cxd4 {[%clk 0:00:04]}  Qd5 {[%clk 0:00:28]} 37. Qc3 {[%clk 0:00:04]}  Rd6 {[%clk 0:00:20]} 38. Ka1 {[%clk 0:00:04]}  Rc6 {[%clk 0:00:19]} 39. Qd3 {[%clk 0:00:04]}  Rc4 {[%clk 0:00:16]} 40. Qd2 {[%clk 0:00:04]}  Kg7 {[%clk 0:00:13]} 41. Qd3 {[%clk 0:00:04]}  h6 {[%clk 0:00:11]} 42. Kb1 {[%clk 0:00:04]}  Rc6 {[%clk 0:00:09]} 43. Qe3 {[%clk 0:00:04]}  Re6 {[%clk 0:00:07]} 44. Qd3 {[%clk 0:00:05]}  Kf7 {[%clk 0:00:03]} 45. Qc3 {[%clk 0:00:05]}  Ke7 {[%clk 0:00:04]} 46. Qc7+ {[%clk 0:00:05]}  Qd7 {[%clk 0:00:04]} 47. Qxd7+ {[%clk 0:00:04]}  Kxd7 {[%clk 0:00:05]} 48. d5 {[%clk 0:00:05]}  Re2 {[%clk 0:00:05]} 49. d6 {[%clk 0:00:04]}  Re3 {[%clk 0:00:04]} 50. Rh1 {[%clk 0:00:04]}  Kxd6 {[%clk 0:00:04]} 51. Kc1 {[%clk 0:00:04]}  Kc5 {[%clk 0:00:04]} 52. Kd2 {[%clk 0:00:05]}  Rg3 {[%clk 0:00:05]} 53. Rh2 {[%clk 0:00:03]}  h5 {[%clk 0:00:04]} 54. gxh5 {[%clk 0:00:03]}  gxh5 {[%clk 0:00:05]} 55. h4 {[%clk 0:00:03]}  Rf3 {[%clk 0:00:05]} 56. Ke2 {[%clk 0:00:03]}  Rg3 {[%clk 0:00:05]} 57. Kf2 {[%clk 0:00:02]}  Rg4 {[%clk 0:00:05]} 58. Ke2 {[%clk 0:00:03]}  Kd4 {[%clk 0:00:05]} 59. Rh3 {[%clk 0:00:03]}  Rg2+ {[%clk 0:00:05]} 60. Kf1 {[%clk 0:00:03]}  Rxb2 {[%clk 0:00:05]} 61. Rf3 {[%clk 0:00:03]}  Ra2 {[%clk 0:00:05]} 62. Rf4+ {[%clk 0:00:04]}  Kc3 {[%clk 0:00:04]} 63. Rxa4 {[%clk 0:00:05]}  b2 {[%clk 0:00:04]} 64. Rb4 {[%clk 0:00:05]}  Ra1+ {[%clk 0:00:05]} 65. Ke2 {[%clk 0:00:05]}  b1=Q {[%clk 0:00:05]} 66. Rxb1 {[%clk 0:00:06]}  Rxb1 {[%clk 0:00:05]} 67. Kf3 {[%clk 0:00:07]}  Rd1 {[%clk 0:00:04]} 68. Kf4 {[%clk 0:00:07]}  Rd5 {[%clk 0:00:04]} 69. a4 {[%clk 0:00:07]}  Ra5 {[%clk 0:00:04]} 70. Ke4 {[%clk 0:00:05]}  Kb3 {[%clk 0:00:05]} 71. Kf4 {[%clk 0:00:05]}  Kxa4 {[%clk 0:00:06]} 72. Ke4 {[%clk 0:00:05]}  Kb4 {[%clk 0:00:07]} 73. Kf4 {[%clk 0:00:06]}  Rb5 {[%clk 0:00:07]} 74. Ke4 {[%clk 0:00:06]}  Kc4 {[%clk 0:00:08]} 75. Kf4 {[%clk 0:00:07]}  Rd5 {[%clk 0:00:08]} 76. Ke4 {[%clk 0:00:08]}  Rc5 {[%clk 0:00:09]} 77. Kf4 {[%clk 0:00:08]}  Kd4 {[%clk 0:00:10]} 78. Kf3 {[%clk 0:00:08]}  Re5 {[%clk 0:00:10]} 79. Kf4 {[%clk 0:00:09]}  Kd5 {[%clk 0:00:10]} 80. Kf3 {[%clk 0:00:08]}  Ke6 {[%clk 0:00:11]} 81. Kf4 {[%clk 0:00:09]}  Kf6 {[%clk 0:00:12]} 82. Kf3 {[%clk 0:00:10]}  Kf5 {[%clk 0:00:13]} 83. Kg3 {[%clk 0:00:10]}  Rb5 {[%clk 0:00:13]} 84. Kh3 {[%clk 0:00:10]}  Rb3+ {[%clk 0:00:14]} 85. Kg2 {[%clk 0:00:11]}  Kg4 {[%clk 0:00:15]} 86. Kf1 {[%clk 0:00:12]}  Kxh4 {[%clk 0:00:15]} 87. Ke2 {[%clk 0:00:13]}  Kg4 {[%clk 0:00:15]} 88. Kd2 {[%clk 0:00:14]}  h4 {[%clk 0:00:16]} 89. Kc2 {[%clk 0:00:14]}  Rg3 {[%clk 0:00:16]} 90. Kd1 {[%clk 0:00:15]}  h3 {[%clk 0:00:17]} 91. Kc2 {[%clk 0:00:16]}  h2 {[%clk 0:00:18]} 92. Kd2 {[%clk 0:00:17]}  h1=Q {[%clk 0:00:18]} 93. Ke2 {[%clk 0:00:18]}  Qh2+ {[%clk 0:00:18]} 94. Ke1 {[%clk 0:00:18]}  Rg1# {[%clk 0:00:19]} 0-1

[Event "December 19 Early 2023"]
[Site "https://www.chess.com"]
[Date "2023.12.19"]
[Round "4"]
[White "Skurikhin, Dmitrij"]
[Black "Wanyama, Harold"]
[Result "0-1"]
[Board "209"]
[TimeControl "180+1"]
[WhiteFideId "4161297"]
[BlackFideId "10000380"]
[WhiteElo "2197"]
[BlackElo "2228"]
[WhiteTeam "RUS"]
[BlackTeam "UGA"]
[WhiteClock "0:00:43"]
[BlackClock "0:01:06"]

1. d4 {[%clk 0:02:57]}  d5 {[%clk 0:02:58]} 2. c4 {[%clk 0:02:56]}  e6 {[%clk 0:02:54]} 3. Nf3 {[%clk 0:02:56]}  Nf6 {[%clk 0:02:53]} 4. Nc3 {[%clk 0:02:56]}  c6 {[%clk 0:02:53]} 5. e3 {[%clk 0:02:54]}  Nbd7 {[%clk 0:02:50]} 6. Qc2 {[%clk 0:02:54]}  Bd6 {[%clk 0:02:45]} 7. Bd3 {[%clk 0:02:54]}  dxc4 {[%clk 0:02:43]} 8. Bxc4 {[%clk 0:02:53]}  e5 {[%clk 0:02:44]} 9. O-O {[%clk 0:02:48]}  O-O {[%clk 0:02:41]} 10. Rd1 {[%clk 0:02:41]}  Qe7 {[%clk 0:02:41]} 11. dxe5 {[%clk 0:02:37]}  Nxe5 {[%clk 0:02:40]} 12. Be2 {[%clk 0:02:34]}  Re8 {[%clk 0:02:36]} 13. b3 {[%clk 0:02:32]}  Bc7 {[%clk 0:02:35]} 14. Bb2 {[%clk 0:02:31]}  Neg4 {[%clk 0:02:30]} 15. Qd2 {[%clk 0:01:51]}  Ba5 {[%clk 0:02:23]} 16. a3 {[%clk 0:01:43]}  Nxf2 {[%clk 0:02:16]} 17. Kxf2 {[%clk 0:01:38]}  Bxc3 {[%clk 0:02:12]} 18. Qc2 {[%clk 0:01:35]}  Qxe3+ {[%clk 0:02:05]} 19. Kf1 {[%clk 0:01:35]}  Bxb2 {[%clk 0:02:02]} 20. Qxb2 {[%clk 0:01:34]}  Bg4 {[%clk 0:01:49]} 21. Rd3 {[%clk 0:01:32]}  Qh6 {[%clk 0:01:48]} 22. Kg1 {[%clk 0:01:30]}  Ne4 {[%clk 0:01:40]} 23. Rad1 {[%clk 0:01:27]}  g6 {[%clk 0:01:34]} 24. b4 {[%clk 0:01:24]}  Qg7 {[%clk 0:01:34]} 25. Qxg7+ {[%clk 0:01:21]}  Kxg7 {[%clk 0:01:33]} 26. h3 {[%clk 0:01:21]}  Ng3 {[%clk 0:01:27]} 27. Bf1 {[%clk 0:01:19]}  Bf5 {[%clk 0:01:26]} 28. Rd6 {[%clk 0:01:16]}  Re7 {[%clk 0:01:24]} 29. Kf2 {[%clk 0:01:14]}  Ne4+ {[%clk 0:01:23]} 30. Kg1 {[%clk 0:01:14]}  Nxd6 {[%clk 0:01:23]} 31. Rxd6 {[%clk 0:01:15]}  Rd7 {[%clk 0:01:22]} 32. Rxd7 {[%clk 0:01:14]}  Bxd7 {[%clk 0:01:21]} 33. Kf2 {[%clk 0:01:15]}  Be6 {[%clk 0:01:20]} 34. Ke3 {[%clk 0:01:14]}  Rd8 {[%clk 0:01:19]} 35. Bd3 {[%clk 0:01:11]}  Bd5 {[%clk 0:01:18]} 36. Ne5 {[%clk 0:01:08]}  Bxg2 {[%clk 0:01:16]} 37. h4 {[%clk 0:01:08]}  f5 {[%clk 0:01:13]} 38. Bc4 {[%clk 0:01:05]}  Kf6 {[%clk 0:01:12]} 39. Nf7 {[%clk 0:01:04]}  Rd7 {[%clk 0:01:07]} 40. Ng5 {[%clk 0:01:03]}  h6 {[%clk 0:01:07]} 41. Nf3 {[%clk 0:01:03]}  Bxf3 {[%clk 0:01:05]} 42. Kxf3 {[%clk 0:01:03]}  Rd4 {[%clk 0:01:06]} 43. Be2 {[%clk 0:01:03]}  Rxh4 {[%clk 0:01:06]} 44. a4 {[%clk 0:01:03]}  g5 {[%clk 0:01:06]} 45. b5 {[%clk 0:01:02]}  Rxa4 {[%clk 0:01:05]} 46. bxc6 {[%clk 0:01:02]}  bxc6 {[%clk 0:01:06]} 47. Bb5 {[%clk 0:00:43]}  cxb5 {[%clk 0:01:06]} 0-1

[Event "December 19 Early 2023"]
[Site "https://www.chess.com"]
[Date "2023.12.19"]
[Round "4"]
[White "Larina, Maria"]
[Black "Elissalt Cardenas, Hector"]
[Result "0-1"]
[Board "211"]
[TimeControl "180+1"]
[WhiteFideId "24113182"]
[BlackFideId "3500632"]
[WhiteElo "1848"]
[BlackElo "2202"]
[WhiteTeam "FID"]
[BlackTeam "ESP"]
[WhiteClock "0:00:06"]
[BlackClock "0:01:52"]

1. e4 {[%clk 0:03:00]}  d6 {[%clk 0:02:58]} 2. Nc3 {[%clk 0:02:59]}  Nf6 {[%clk 0:02:57]} 3. f4 {[%clk 0:02:59]}  e5 {[%clk 0:02:55]} 4. d3 {[%clk 0:02:58]}  Nbd7 {[%clk 0:02:53]} 5. Nf3 {[%clk 0:02:58]}  Be7 {[%clk 0:02:54]} 6. g3 {[%clk 0:02:58]}  O-O {[%clk 0:02:54]} 7. Bg2 {[%clk 0:02:59]}  c6 {[%clk 0:02:54]} 8. a4 {[%clk 0:02:58]}  exf4 {[%clk 0:02:49]} 9. Bxf4 {[%clk 0:02:57]}  d5 {[%clk 0:02:50]} 10. O-O {[%clk 0:02:38]}  dxe4 {[%clk 0:02:47]} 11. dxe4 {[%clk 0:02:38]}  Qb6+ {[%clk 0:02:47]} 12. Kh1 {[%clk 0:02:38]}  Ng4 {[%clk 0:02:47]} 13. Qe2 {[%clk 0:02:35]}  Qxb2 {[%clk 0:02:42]} 14. Qd2 {[%clk 0:02:20]}  Bb4 {[%clk 0:02:37]} 15. Rab1 {[%clk 0:01:18]}  Qxc3 {[%clk 0:02:36]} 16. Rxb4 {[%clk 0:01:17]}  Qxd2 {[%clk 0:02:31]} 17. Bxd2 {[%clk 0:01:08]}  Nge5 {[%clk 0:02:29]} 18. Nd4 {[%clk 0:01:00]}  a5 {[%clk 0:02:22]} 19. Rbb1 {[%clk 0:01:00]}  Nc5 {[%clk 0:02:22]} 20. Bf4 {[%clk 0:00:52]}  Re8 {[%clk 0:02:20]} 21. Ra1 {[%clk 0:00:44]}  Bd7 {[%clk 0:02:15]} 22. Nb3 {[%clk 0:00:34]}  Nxb3 {[%clk 0:02:01]} 23. cxb3 {[%clk 0:00:35]}  f6 {[%clk 0:02:01]} 24. Rfd1 {[%clk 0:00:34]}  Be6 {[%clk 0:02:01]} 25. Rab1 {[%clk 0:00:29]}  Red8 {[%clk 0:01:59]} 26. Bxe5 {[%clk 0:00:13]}  fxe5 {[%clk 0:01:58]} 27. Bf3 {[%clk 0:00:10]}  Rxd1+ {[%clk 0:01:54]} 28. Bxd1 {[%clk 0:00:11]}  Rd8 {[%clk 0:01:53]} 29. Bc2 {[%clk 0:00:09]}  Rd4 {[%clk 0:01:53]} 30. Kg2 {[%clk 0:00:08]}  Rd2+ {[%clk 0:01:52]} 31. Kf3 {[%clk 0:00:06]}  Rxc2 {[%clk 0:01:52]} 0-1

[Event "December 19 Early 2023"]
[Site "https://www.chess.com"]
[Date "2023.12.19"]
[Round "4"]
[White "Zhuk, Valeriy"]
[Black "Silvestre, Christian"]
[Result "0-1"]
[Board "212"]
[TimeControl "180+1"]
[WhiteFideId "24151254"]
[BlackFideId "30956269"]
[WhiteElo "2148"]
[BlackElo "2238"]
[WhiteTeam "RUS"]
[BlackTeam "USA"]
[WhiteClock "0:00:00"]
[BlackClock "0:00:38"]

1. Nf3 {[%clk 0:02:50]}  c5 {[%clk 0:02:55]} 2. e4 {[%clk 0:02:49]}  Nc6 {[%clk 0:02:55]} 3. d4 {[%clk 0:02:50]}  cxd4 {[%clk 0:02:56]} 4. Nxd4 {[%clk 0:02:51]}  g6 {[%clk 0:02:56]} 5. Nc3 {[%clk 0:02:39]}  Bg7 {[%clk 0:02:53]} 6. Nb3 {[%clk 0:02:38]}  Nf6 {[%clk 0:02:53]} 7. Be2 {[%clk 0:02:38]}  O-O {[%clk 0:02:54]} 8. O-O {[%clk 0:02:39]}  e6 {[%clk 0:02:52]} 9. Bg5 {[%clk 0:02:25]}  h6 {[%clk 0:02:51]} 10. Bh4 {[%clk 0:02:25]}  g5 {[%clk 0:02:50]} 11. Bg3 {[%clk 0:02:24]}  d5 {[%clk 0:02:51]} 12. exd5 {[%clk 0:02:21]}  Nxd5 {[%clk 0:02:52]} 13. Nxd5 {[%clk 0:02:19]}  exd5 {[%clk 0:02:53]} 14. c3 {[%clk 0:02:08]}  f5 {[%clk 0:02:49]} 15. f4 {[%clk 0:02:03]}  d4 {[%clk 0:02:34]} 16. Bc4+ {[%clk 0:01:49]}  Kh8 {[%clk 0:02:32]} 17. fxg5 {[%clk 0:01:33]}  Qxg5 {[%clk 0:02:29]} 18. Bf4 {[%clk 0:01:22]}  Qg4 {[%clk 0:02:23]} 19. cxd4 {[%clk 0:01:19]}  Bd7 {[%clk 0:02:07]} 20. d5 {[%clk 0:01:06]}  Ne5 {[%clk 0:02:04]} 21. Be2 {[%clk 0:01:06]}  Qg6 {[%clk 0:01:58]} 22. Kh1 {[%clk 0:01:05]}  Ng4 {[%clk 0:01:53]} 23. h3 {[%clk 0:01:00]}  Nf6 {[%clk 0:01:49]} 24. Nc5 {[%clk 0:01:00]}  Rad8 {[%clk 0:01:46]} 25. Bf3 {[%clk 0:00:55]}  Ne4 {[%clk 0:01:43]} 26. Nxe4 {[%clk 0:00:42]}  fxe4 {[%clk 0:01:44]} 27. Bh5 {[%clk 0:00:42]}  Qb6 {[%clk 0:01:31]} 28. d6 {[%clk 0:00:28]}  Bc6 {[%clk 0:01:23]} 29. Qd2 {[%clk 0:00:25]}  Qxb2 {[%clk 0:01:16]} 30. Qe3 {[%clk 0:00:20]}  Qd4 {[%clk 0:00:52]} 31. Qg3 {[%clk 0:00:16]}  e3 {[%clk 0:00:41]} 32. Bg6 {[%clk 0:00:00]}  e2 {[%clk 0:00:38]} 0-1

[Event "December 19 Early 2023"]
[Site "https://www.chess.com"]
[Date "2023.12.19"]
[Round "4"]
[White "Hobson, Kenneth"]
[Black "Kolmagorov, Alexey"]
[Result "0-1"]
[Board "213"]
[TimeControl "180+1"]
[WhiteFideId "480819"]
[BlackFideId "34129402"]
[WhiteElo "1953"]
[BlackElo "1989"]
[WhiteTeam "ENG"]
[BlackTeam "RUS"]
[WhiteClock "0:00:37"]
[BlackClock "0:01:41"]

1. d4 {[%clk 0:03:00]}  Nf6 {[%clk 0:02:59]} 2. Nf3 {[%clk 0:02:59]}  d5 {[%clk 0:02:58]} 3. c4 {[%clk 0:02:59]}  e6 {[%clk 0:02:58]} 4. Nc3 {[%clk 0:02:59]}  a6 {[%clk 0:02:58]} 5. Bg5 {[%clk 0:02:58]}  dxc4 {[%clk 0:02:54]} 6. a4 {[%clk 0:02:54]}  Nc6 {[%clk 0:02:54]} 7. e4 {[%clk 0:02:52]}  Na5 {[%clk 0:02:53]} 8. e5 {[%clk 0:02:50]}  h6 {[%clk 0:02:54]} 9. Bh4 {[%clk 0:02:30]}  g5 {[%clk 0:02:53]} 10. exf6 {[%clk 0:02:30]}  gxh4 {[%clk 0:02:51]} 11. Ne4 {[%clk 0:02:30]}  Bb4+ {[%clk 0:02:48]} 12. Nfd2 {[%clk 0:02:29]}  Qxd4 {[%clk 0:02:43]} 13. Qe2 {[%clk 0:02:02]}  Nb3 {[%clk 0:02:34]} 14. Rd1 {[%clk 0:02:02]}  b5 {[%clk 0:02:06]} 15. g3 {[%clk 0:01:44]}  Bb7 {[%clk 0:02:02]} 16. Bg2 {[%clk 0:01:43]}  Nxd2 {[%clk 0:01:49]} 17. Nxd2 {[%clk 0:00:47]}  Bxg2 {[%clk 0:01:48]} 18. Rg1 {[%clk 0:00:47]}  h3 {[%clk 0:01:41]} 19. f4 {[%clk 0:00:37]}  Qxg1+ {[%clk 0:01:40]} 20. Qf1 {[%clk 0:00:37]}  Qxf1# {[%clk 0:01:41]} 0-1

[Event "December 19 Early 2023"]
[Site "https://www.chess.com"]
[Date "2023.12.19"]
[Round "4"]
[White "Quilter, Thomas A"]
[Black "Joel Paul Ganta"]
[Result "0-1"]
[Board "214"]
[TimeControl "180+1"]
[WhiteFideId "408530"]
[BlackFideId "35066145"]
[WhiteElo "1962"]
[BlackElo "1891"]
[WhiteTeam "ENG"]
[BlackTeam "IND"]
[WhiteClock "0:01:27"]
[BlackClock "0:01:23"]

1. Nf3 {[%clk 0:03:00]}  d5 {[%clk 0:02:54]} 2. e3 {[%clk 0:02:59]}  Nf6 {[%clk 0:02:47]} 3. c4 {[%clk 0:02:59]}  c6 {[%clk 0:02:47]} 4. b3 {[%clk 0:02:59]}  Bg4 {[%clk 0:02:45]} 5. Be2 {[%clk 0:02:50]}  Nbd7 {[%clk 0:02:43]} 6. Bb2 {[%clk 0:02:50]}  e6 {[%clk 0:02:41]} 7. O-O {[%clk 0:02:47]}  Be7 {[%clk 0:02:40]} 8. d4 {[%clk 0:02:47]}  O-O {[%clk 0:02:39]} 9. h3 {[%clk 0:02:47]}  Bh5 {[%clk 0:02:23]} 10. Nbd2 {[%clk 0:02:44]}  a5 {[%clk 0:02:18]} 11. Ne5 {[%clk 0:02:37]}  Bxe2 {[%clk 0:02:16]} 12. Qxe2 {[%clk 0:02:37]}  a4 {[%clk 0:02:14]} 13. c5 {[%clk 0:02:36]}  Nxe5 {[%clk 0:02:11]} 14. dxe5 {[%clk 0:02:37]}  Nd7 {[%clk 0:02:06]} 15. b4 {[%clk 0:02:37]}  b6 {[%clk 0:02:06]} 16. Ba3 {[%clk 0:02:19]}  bxc5 {[%clk 0:02:03]} 17. bxc5 {[%clk 0:02:19]}  Nxe5 {[%clk 0:01:58]} 18. Nf3 {[%clk 0:02:07]}  Nc4 {[%clk 0:01:47]} 19. Bb4 {[%clk 0:02:06]}  a3 {[%clk 0:01:44]} 20. Rfd1 {[%clk 0:02:00]}  Ra4 {[%clk 0:01:41]} 21. Qe1 {[%clk 0:02:00]}  Qb8 {[%clk 0:01:37]} 22. Nd4 {[%clk 0:01:56]}  Qxb4 {[%clk 0:01:30]} 23. Nxc6 {[%clk 0:01:27]}  Qxe1+ {[%clk 0:01:25]} 24. Rxe1 {[%clk 0:01:27]}  Bxc5 {[%clk 0:01:23]} 0-1

[Event "December 19 Early 2023"]
[Site "https://www.chess.com"]
[Date "2023.12.19"]
[Round "4"]
[White "Kornyukov, Alexey"]
[Black "Cramling Bellon, Anna"]
[Result "0-1"]
[Board "215"]
[TimeControl "180+1"]
[WhiteFideId "4150457"]
[BlackFideId "32009232"]
[WhiteElo "2352"]
[BlackElo "1976"]
[WhiteTeam "RUS"]
[BlackTeam "SWE"]
[WhiteClock "0:00:02"]
[BlackClock "0:00:03"]

1. e4 {[%clk 0:03:00]}  c5 {[%clk 0:03:00]} 2. Nf3 {[%clk 0:02:56]}  e6 {[%clk 0:03:00]} 3. c3 {[%clk 0:02:56]}  Nf6 {[%clk 0:02:59]} 4. e5 {[%clk 0:02:54]}  Nd5 {[%clk 0:02:58]} 5. d4 {[%clk 0:02:52]}  cxd4 {[%clk 0:02:58]} 6. cxd4 {[%clk 0:02:52]}  Nc6 {[%clk 0:02:59]} 7. Nc3 {[%clk 0:02:51]}  Nxc3 {[%clk 0:02:58]} 8. bxc3 {[%clk 0:02:50]}  d6 {[%clk 0:02:59]} 9. exd6 {[%clk 0:02:45]}  Bxd6 {[%clk 0:02:59]} 10. Bd3 {[%clk 0:02:45]}  Qa5 {[%clk 0:02:42]} 11. Bd2 {[%clk 0:02:39]}  Qh5 {[%clk 0:02:41]} 12. O-O {[%clk 0:02:34]}  Bd7 {[%clk 0:02:35]} 13. Rb1 {[%clk 0:02:29]}  b6 {[%clk 0:02:25]} 14. Re1 {[%clk 0:02:16]}  Na5 {[%clk 0:02:16]} 15. Be4 {[%clk 0:02:11]}  Rc8 {[%clk 0:02:11]} 16. d5 {[%clk 0:02:00]}  O-O {[%clk 0:02:10]} 17. dxe6 {[%clk 0:01:46]}  Bxe6 {[%clk 0:02:05]} 18. h3 {[%clk 0:01:16]}  Rfd8 {[%clk 0:02:01]} 19. Ng5 {[%clk 0:01:06]}  Qxd1 {[%clk 0:01:33]} 20. Rbxd1 {[%clk 0:00:57]}  Bxa2 {[%clk 0:01:25]} 21. Bxh7+ {[%clk 0:00:52]}  Kh8 {[%clk 0:01:17]} 22. Bf5 {[%clk 0:00:49]}  Rc5 {[%clk 0:01:07]} 23. Bg4 {[%clk 0:00:33]}  Bb3 {[%clk 0:00:34]} 24. Rb1 {[%clk 0:00:27]}  Kg8 {[%clk 0:00:18]} 25. Ne4 {[%clk 0:00:25]}  Rd5 {[%clk 0:00:15]} 26. Be3 {[%clk 0:00:17]}  Bc2 {[%clk 0:00:14]} 27. Bg5 {[%clk 0:00:13]}  Bxb1 {[%clk 0:00:04]} 28. Bxd8 {[%clk 0:00:13]}  Bxe4 {[%clk 0:00:03]} 29. Rxe4 {[%clk 0:00:13]}  f5 {[%clk 0:00:02]} 30. Re8+ {[%clk 0:00:11]}  Kf7 {[%clk 0:00:03]} 31. Bh5+ {[%clk 0:00:11]}  g6 {[%clk 0:00:03]} 32. Bxg6+ {[%clk 0:00:09]}  Kxg6 {[%clk 0:00:02]} 33. Re6+ {[%clk 0:00:08]}  Kf7 {[%clk 0:00:03]} 34. Rf6+ {[%clk 0:00:08]}  Ke8 {[%clk 0:00:04]} 35. Rh6 {[%clk 0:00:02]}  Rd1# {[%clk 0:00:03]} 0-1

[Event "December 19 Early 2023"]
[Site "https://www.chess.com"]
[Date "2023.12.19"]
[Round "4"]
[White "Shapiro, Daniel"]
[Black "Mende, Andreas"]
[Result "0-1"]
[Board "216"]
[TimeControl "180+1"]
[WhiteFideId "2001780"]
[BlackFideId "4631102"]
[WhiteElo "2318"]
[BlackElo "2070"]
[WhiteTeam "USA"]
[BlackTeam "GER"]
[WhiteClock "0:00:00"]
[BlackClock "0:00:16"]

1. d4 {[%clk 0:03:00]}  Nf6 {[%clk 0:02:57]} 2. c4 {[%clk 0:03:00]}  g6 {[%clk 0:02:57]} 3. Nc3 {[%clk 0:02:59]}  d5 {[%clk 0:02:58]} 4. Nf3 {[%clk 0:02:58]}  Bg7 {[%clk 0:02:57]} 5. Qb3 {[%clk 0:02:58]}  dxc4 {[%clk 0:02:56]} 6. Qxc4 {[%clk 0:02:59]}  O-O {[%clk 0:02:56]} 7. e4 {[%clk 0:03:00]}  a6 {[%clk 0:02:56]} 8. Qa4 {[%clk 0:02:56]}  c5 {[%clk 0:02:28]} 9. dxc5 {[%clk 0:02:55]}  Nbd7 {[%clk 0:02:25]} 10. Qa3 {[%clk 0:02:55]}  Qc7 {[%clk 0:02:14]} 11. Be3 {[%clk 0:02:06]}  e6 {[%clk 0:02:07]} 12. h3 {[%clk 0:01:53]}  Rb8 {[%clk 0:01:44]} 13. Be2 {[%clk 0:01:49]}  b5 {[%clk 0:01:40]} 14. cxb6 {[%clk 0:01:46]}  Nxb6 {[%clk 0:01:40]} 15. Qa5 {[%clk 0:01:34]}  Nfd7 {[%clk 0:01:34]} 16. Rc1 {[%clk 0:01:20]}  Qb7 {[%clk 0:01:23]} 17. Nd2 {[%clk 0:01:09]}  Ne5 {[%clk 0:01:08]} 18. O-O {[%clk 0:01:00]}  Nc6 {[%clk 0:01:07]} 19. Qg5 {[%clk 0:00:45]}  Nd4 {[%clk 0:01:00]} 20. Bd1 {[%clk 0:00:32]}  Bd7 {[%clk 0:00:52]} 21. Qh4 {[%clk 0:00:32]}  Bc6 {[%clk 0:00:48]} 22. Bh6 {[%clk 0:00:31]}  Rfd8 {[%clk 0:00:43]} 23. Bxg7 {[%clk 0:00:30]}  Kxg7 {[%clk 0:00:43]} 24. Nb3 {[%clk 0:00:16]}  Nxb3 {[%clk 0:00:35]} 25. Bxb3 {[%clk 0:00:16]}  Rd4 {[%clk 0:00:31]} 26. Rfe1 {[%clk 0:00:16]}  Rbd8 {[%clk 0:00:27]} 27. f3 {[%clk 0:00:16]}  a5 {[%clk 0:00:26]} 28. Qf2 {[%clk 0:00:14]}  a4 {[%clk 0:00:25]} 29. Bc2 {[%clk 0:00:14]}  Nc4 {[%clk 0:00:25]} 30. b3 {[%clk 0:00:12]}  Rd2 {[%clk 0:00:24]} 31. Re2 {[%clk 0:00:12]}  Rxe2 {[%clk 0:00:22]} 32. Qxe2 {[%clk 0:00:12]}  Na3 {[%clk 0:00:20]} 33. Bd3 {[%clk 0:00:11]}  axb3 {[%clk 0:00:19]} 34. axb3 {[%clk 0:00:09]}  Qxb3 {[%clk 0:00:19]} 35. Qc2 {[%clk 0:00:06]}  Nxc2 {[%clk 0:00:18]} 36. Bxc2 {[%clk 0:00:03]}  Qxc3 {[%clk 0:00:17]} 37. Kh2 {[%clk 0:00:02]}  Qd2 {[%clk 0:00:16]} 38. Rf1 {[%clk 0:00:00]}  Qxc2 {[%clk 0:00:16]} 0-1